{"text_format":"3","workbook":"xlsx","n_sheets":1,"sheets":["Presupuesto familiar mensual"],"read":"whole","date_system":"1900"}

{"sheet":"Presupuesto familiar mensual","index":0,"n_rows":67,"n_cols":10,"rows_kept":67}
[null,"Presupuesto familiar mensual"]
[null,"Tabla de resumen","Total\nCosto previsto","Total\nCosto real","Total\nDiferencia",null,"Fuente de ingresos mensuales previstos","Importe"]
[null,null,{"$f":"Alojamiento[[#Totals],[Previsto\nCosto]]+Transporte[[#Totals],[Previsto\nCosto]]+Seguro[[#Totals],[Previsto\nCosto]]+Comida[[#Totals],[Previsto\nCosto]]+Ninos[[#Totals],[Previsto\nCosto]]+Legal[[#Totals],[Previsto\nCosto]]+Ahorros[[#Totals],[Previsto\nCosto]]+Prestamos[[#Totals],[Previsto\nCosto]]+Entretenimiento[[#Totals],[Previsto\nCosto]]+Impuestos[[#Totals],[Previsto \nCosto]]+CuidadoPersonal[[#Totals],[Previsto\nCosto]]+Mascotas[[#Totals],[Previsto\nCosto]]+Regalos[[#Totals],[Previsto\nCosto]]","v":{"v":1203,"d":"$1,203"}},{"$f":"Alojamiento[[#Totals],[Real\nCosto]]+Transporte[[#Totals],[Real\nCosto]]+Seguro[[#Totals],[Real\nCosto]]+Comida[[#Totals],[Real\nCosto]]+Ninos[[#Totals],[Real\nCosto]]+Legal[[#Totals],[Real\nCosto]]+Ahorros[[#Totals],[Real\nCosto]]+Prestamos[[#Totals],[Real\nCosto]]+Entretenimiento[[#Totals],[Real\nCosto]]+Impuestos[[#Totals],[Real \nCosto]]+CuidadoPersonal[[#Totals],[Real\nCosto]]+Mascotas[[#Totals],[Real\nCosto]]+Regalos[[#Totals],[Real\nCosto]]","v":{"v":1317,"d":"$1,317"}},{"$f":"Alojamiento[[#Totals],[Diferencia]]+Transporte[[#Totals],[Diferencia]]+Seguro[[#Totals],[Diferencia]]+Comida[[#Totals],[Diferencia]]+Ninos[[#Totals],[Diferencia]]+Legal[[#Totals],[Diferencia]]+Ahorros[[#Totals],[Diferencia]]+Prestamos[[#Totals],[Diferencia]]+Entretenimiento[[#Totals],[Diferencia]]+Impuestos[[#Totals],[Diferencia]]+CuidadoPersonal[[#Totals],[Diferencia]]+Mascotas[[#Totals],[Diferencia]]+Regalos[[#Totals],[Diferencia]]","v":{"v":-114,"d":"-$114"}},null,"Ingresos 1",{"v":4000,"d":"$4,000"}]
[{"$nulls":6},"Ingresos 2",{"v":1200,"d":"$1,200"}]
[null,"Alojamiento","Previsto\nCosto","Real\nCosto","Diferencia",null,"Ingresos adicionales",{"v":300,"d":"$300"}]
[null,"Hipoteca o arrendamiento",{"v":1000,"d":"$1,000"},{"v":1000,"d":"$1,000"},{"$f":"Alojamiento[Previsto\nCosto]-Alojamiento[Real\nCosto]","v":{"v":0,"d":"$0"}},null,"Total de ingresos mensuales",{"$f":"SUM(H3:H5)","v":{"v":5500,"d":"$5,500"}}]
[null,"Segunda hipoteca o arrendamiento",{"v":0,"d":"$0"},{"v":0,"d":"$0"},{"$f":"Alojamiento[Previsto\nCosto]-Alojamiento[Real\nCosto]","v":{"v":0,"d":"$0"}}]
[null,"Teléfono",{"v":62,"d":"$62"},{"v":100,"d":"$100"},{"$f":"Alojamiento[Previsto\nCosto]-Alojamiento[Real\nCosto]","v":{"v":-38,"d":"-$38"}},null,"Fuente de ingresos mensuales reales","Importe"]
[null,"Electricidad",{"v":44,"d":"$44"},{"v":125,"d":"$125"},{"$f":"Alojamiento[Previsto\nCosto]-Alojamiento[Real\nCosto]","v":{"v":-81,"d":"-$81"}},null,"Ingresos 1",{"v":4000,"d":"$4,000"}]
[null,"Gas",{"v":22,"d":"$22"},{"v":35,"d":"$35"},{"$f":"Alojamiento[Previsto\nCosto]-Alojamiento[Real\nCosto]","v":{"v":-13,"d":"-$13"}},null,"Ingresos 2",{"v":1200,"d":"$1,200"}]
[null,"Agua y drenaje",{"v":8,"d":"$8"},{"v":8,"d":"$8"},{"$f":"Alojamiento[Previsto\nCosto]-Alojamiento[Real\nCosto]","v":{"v":0,"d":"$0"}},null,"Ingresos adicionales",{"v":300,"d":"$300"}]
[null,"Televisión por cable",{"v":34,"d":"$34"},{"v":39,"d":"$39"},{"$f":"Alojamiento[Previsto\nCosto]-Alojamiento[Real\nCosto]","v":{"v":-5,"d":"-$5"}},null,"Total de ingresos mensuales",{"$f":"SUM(H9:H11)","v":{"v":5500,"d":"$5,500"}}]
[null,"Eliminación de residuos",{"v":10,"d":"$10"},{"v":10,"d":"$10"},{"$f":"Alojamiento[Previsto\nCosto]-Alojamiento[Real\nCosto]","v":{"v":0,"d":"$0"}}]
[null,"Mantenimiento o reparaciones",{"v":23,"d":"$23"},{"v":0,"d":"$0"},{"$f":"Alojamiento[Previsto\nCosto]-Alojamiento[Real\nCosto]","v":{"v":23,"d":"$23"}},null,"Saldo","Importe"]
[null,"Suministros",{"v":0,"d":"$0"},{"v":0,"d":"$0"},{"$f":"Alojamiento[Previsto\nCosto]-Alojamiento[Real\nCosto]","v":{"v":0,"d":"$0"}},null,"Saldo previsto",{"$f":"SUM(H6-'Presupuesto familiar mensual'!$C$3:$C$3)","v":{"v":4297,"d":"$4,297"}}]
[null,"Otros",{"v":0,"d":"$0"},{"v":0,"d":"$0"},{"$f":"Alojamiento[Previsto\nCosto]-Alojamiento[Real\nCosto]","v":{"v":0,"d":"$0"}},null,"Saldo real",{"$f":"SUM(H12-D3)","v":{"v":4183,"d":"$4,183"}}]
[null,"Total",{"$f":"SUBTOTAL(109,Alojamiento[Previsto\nCosto])","v":{"v":1203,"d":"$1,203"}},{"$f":"SUBTOTAL(109,Alojamiento[Real\nCosto])","v":{"v":1317,"d":"$1,317"}},{"$f":"SUBTOTAL(109,Alojamiento[Diferencia])","v":{"v":-114,"d":"-$114"}},null,"Diferencia",{"$f":"SUM(H16-H15)","v":{"v":-114,"d":"-$114"}}]
[]
[null,"Transporte","Previsto\nCosto","Real\nCosto","Diferencia",null,"Préstamos","Previsto\nCosto","Real\nCosto","Diferencia"]
[null,"Pago de vehículo 1",null,null,{"$f":"Transporte[Previsto\nCosto]-Transporte[Real\nCosto]","v":{"v":0,"d":"$0"}},null,"Personal",null,null,{"$f":"Prestamos[Previsto\nCosto]-Prestamos[Real\nCosto]","v":{"v":0,"d":"$0"}}]
[null,"Pago de vehículo 2",null,null,{"$f":"Transporte[Previsto\nCosto]-Transporte[Real\nCosto]","v":{"v":0,"d":"$0"}},null,"Estudiante",null,null,{"$f":"Prestamos[Previsto\nCosto]-Prestamos[Real\nCosto]","v":{"v":0,"d":"$0"}}]
[null,"Gastos de autobús y taxi",null,null,{"$f":"Transporte[Previsto\nCosto]-Transporte[Real\nCosto]","v":{"v":0,"d":"$0"}},null,"Tarjeta de crédito",null,null,{"$f":"Prestamos[Previsto\nCosto]-Prestamos[Real\nCosto]","v":{"v":0,"d":"$0"}}]
[null,"Seguro",null,null,{"$f":"Transporte[Previsto\nCosto]-Transporte[Real\nCosto]","v":{"v":0,"d":"$0"}},null,"Tarjeta de crédito",null,null,{"$f":"Prestamos[Previsto\nCosto]-Prestamos[Real\nCosto]","v":{"v":0,"d":"$0"}}]
[null,"Licencias",null,null,{"$f":"Transporte[Previsto\nCosto]-Transporte[Real\nCosto]","v":{"v":0,"d":"$0"}},null,"Tarjeta de crédito",null,null,{"$f":"Prestamos[Previsto\nCosto]-Prestamos[Real\nCosto]","v":{"v":0,"d":"$0"}}]
[null,"Combustible",null,null,{"$f":"Transporte[Previsto\nCosto]-Transporte[Real\nCosto]","v":{"v":0,"d":"$0"}},null,"Otros",null,null,{"$f":"Prestamos[Previsto\nCosto]-Prestamos[Real\nCosto]","v":{"v":0,"d":"$0"}}]
[null,"Mantenimiento",null,null,{"$f":"Transporte[Previsto\nCosto]-Transporte[Real\nCosto]","v":{"v":0,"d":"$0"}},null,"Total",{"$f":"SUBTOTAL(109,Prestamos[Previsto\nCosto])","v":{"v":0,"d":"$0"}},{"$f":"SUBTOTAL(109,Prestamos[Real\nCosto])","v":{"v":0,"d":"$0"}},{"$f":"SUBTOTAL(109,Prestamos[Diferencia])","v":{"v":0,"d":"$0"}}]
[null,"Otros",null,null,{"$f":"Transporte[Previsto\nCosto]-Transporte[Real\nCosto]","v":{"v":0,"d":"$0"}}]
[null,"Total",{"$f":"SUBTOTAL(109,Transporte[Previsto\nCosto])","v":{"v":0,"d":"$0"}},{"$f":"SUBTOTAL(109,Transporte[Real\nCosto])","v":{"v":0,"d":"$0"}},{"$f":"SUBTOTAL(109,Transporte[Diferencia])","v":{"v":0,"d":"$0"}},null,"Entretenimiento","Previsto\nCosto","Real\nCosto","Diferencia"]
[{"$nulls":6},"Video y DVD",null,null,{"$f":"Entretenimiento[Previsto\nCosto]-Entretenimiento[Real\nCosto]","v":{"v":0,"d":"$0"}}]
[null,"Seguro","Previsto\nCosto","Real\nCosto","Diferencia",null,"CD",null,null,{"$f":"Entretenimiento[Previsto\nCosto]-Entretenimiento[Real\nCosto]","v":{"v":0,"d":"$0"}}]
[null,"Hogar",null,null,{"$f":"Seguro[Previsto\nCosto]-Seguro[Real\nCosto]","v":{"v":0,"d":"$0"}},null,"Películas",null,null,{"$f":"Entretenimiento[Previsto\nCosto]-Entretenimiento[Real\nCosto]","v":{"v":0,"d":"$0"}}]
[null,"Salud",null,null,{"$f":"Seguro[Previsto\nCosto]-Seguro[Real\nCosto]","v":{"v":0,"d":"$0"}},null,"Conciertos",null,null,{"$f":"Entretenimiento[Previsto\nCosto]-Entretenimiento[Real\nCosto]","v":{"v":0,"d":"$0"}}]
[null,"Vida",null,null,{"$f":"Seguro[Previsto\nCosto]-Seguro[Real\nCosto]","v":{"v":0,"d":"$0"}},null,"Eventos deportivos",null,null,{"$f":"Entretenimiento[Previsto\nCosto]-Entretenimiento[Real\nCosto]","v":{"v":0,"d":"$0"}}]
[null,"Otros",null,null,{"$f":"Seguro[Previsto\nCosto]-Seguro[Real\nCosto]","v":{"v":0,"d":"$0"}},null,"Teatro",null,null,{"$f":"Entretenimiento[Previsto\nCosto]-Entretenimiento[Real\nCosto]","v":{"v":0,"d":"$0"}}]
[null,"Total",{"$f":"SUBTOTAL(109,Seguro[Previsto\nCosto])","v":{"v":0,"d":"$0"}},{"$f":"SUBTOTAL(109,Seguro[Real\nCosto])","v":{"v":0,"d":"$0"}},{"$f":"SUBTOTAL(109,Seguro[Diferencia])","v":{"v":0,"d":"$0"}},null,"Otros",null,null,{"$f":"Entretenimiento[Previsto\nCosto]-Entretenimiento[Real\nCosto]","v":{"v":0,"d":"$0"}}]
[{"$nulls":6},"Total",{"$f":"SUBTOTAL(109,Entretenimiento[Previsto\nCosto])","v":{"v":0,"d":"$0"}},{"$f":"SUBTOTAL(109,Entretenimiento[Real\nCosto])","v":{"v":0,"d":"$0"}},{"$f":"SUBTOTAL(109,Entretenimiento[Diferencia])","v":{"v":0,"d":"$0"}}]
[null,"Comida","Previsto\nCosto","Real\nCosto","Diferencia"]
[null,"Comestibles",null,null,{"$f":"Comida[Previsto\nCosto]-Comida[Real\nCosto]","v":{"v":0,"d":"$0"}},null,"Impuestos","Previsto \nCosto","Real \nCosto","Diferencia"]
[null,"Restaurantes",null,null,{"$f":"Comida[Previsto\nCosto]-Comida[Real\nCosto]","v":{"v":0,"d":"$0"}},null,"Federales",null,null,{"$f":"Impuestos[Previsto \nCosto]-Impuestos[Real \nCosto]","v":{"v":0,"d":"$0"}}]
[null,"Otros",null,null,{"$f":"Comida[Previsto\nCosto]-Comida[Real\nCosto]","v":{"v":0,"d":"$0"}},null,"Estatales",null,null,{"$f":"Impuestos[Previsto \nCosto]-Impuestos[Real \nCosto]","v":{"v":0,"d":"$0"}}]
[null,"Total",{"$f":"SUBTOTAL(109,Comida[Previsto\nCosto])","v":{"v":0,"d":"$0"}},{"$f":"SUBTOTAL(109,Comida[Real\nCosto])","v":{"v":0,"d":"$0"}},{"$f":"SUBTOTAL(109,Comida[Diferencia])","v":{"v":0,"d":"$0"}},null,"Locales",null,null,{"$f":"Impuestos[Previsto \nCosto]-Impuestos[Real \nCosto]","v":{"v":0,"d":"$0"}}]
[{"$nulls":6},"Otros",null,null,{"$f":"Impuestos[Previsto \nCosto]-Impuestos[Real \nCosto]","v":{"v":0,"d":"$0"}}]
[null,"Niños","Previsto\nCosto","Real\nCosto","Diferencia",null,"Total",{"$f":"SUBTOTAL(109,Impuestos[Previsto \nCosto])","v":{"v":0,"d":"$0"}},{"$f":"SUBTOTAL(109,Impuestos[Real \nCosto])","v":{"v":0,"d":"$0"}},{"$f":"SUBTOTAL(109,Impuestos[Diferencia])","v":{"v":0,"d":"$0"}}]
[null,"Médicos",null,null,{"$f":"Ninos[Previsto\nCosto]-Ninos[Real\nCosto]","v":{"v":0,"d":"$0"}}]
[null,"Ropa",null,null,{"$f":"Ninos[Previsto\nCosto]-Ninos[Real\nCosto]","v":{"v":0,"d":"$0"}},null,"Cuidado personal","Previsto\nCosto","Real\nCosto","Diferencia"]
[null,"Colegiatura",null,null,{"$f":"Ninos[Previsto\nCosto]-Ninos[Real\nCosto]","v":{"v":0,"d":"$0"}},null,"Médicos",null,null,{"$f":"CuidadoPersonal[Previsto\nCosto]-CuidadoPersonal[Real\nCosto]","v":{"v":0,"d":"$0"}}]
[null,"Útiles escolares",null,null,{"$f":"Ninos[Previsto\nCosto]-Ninos[Real\nCosto]","v":{"v":0,"d":"$0"}},null,"Cabello y uñas",null,null,{"$f":"CuidadoPersonal[Previsto\nCosto]-CuidadoPersonal[Real\nCosto]","v":{"v":0,"d":"$0"}}]
[null,"Tasas o cuotas de la organización",null,null,{"$f":"Ninos[Previsto\nCosto]-Ninos[Real\nCosto]","v":{"v":0,"d":"$0"}},null,"Ropa",null,null,{"$f":"CuidadoPersonal[Previsto\nCosto]-CuidadoPersonal[Real\nCosto]","v":{"v":0,"d":"$0"}}]
[null,"Dinero del almuerzo",null,null,{"$f":"Ninos[Previsto\nCosto]-Ninos[Real\nCosto]","v":{"v":0,"d":"$0"}},null,"Tintorería",null,null,{"$f":"CuidadoPersonal[Previsto\nCosto]-CuidadoPersonal[Real\nCosto]","v":{"v":0,"d":"$0"}}]
[null,"Cuidado infantil",null,null,{"$f":"Ninos[Previsto\nCosto]-Ninos[Real\nCosto]","v":{"v":0,"d":"$0"}},null,"Gimnasio",null,null,{"$f":"CuidadoPersonal[Previsto\nCosto]-CuidadoPersonal[Real\nCosto]","v":{"v":0,"d":"$0"}}]
[null,"Juegos y juguetes",null,null,{"$f":"Ninos[Previsto\nCosto]-Ninos[Real\nCosto]","v":{"v":0,"d":"$0"}},null,"Tasas o cuotas de la organización",null,null,{"$f":"CuidadoPersonal[Previsto\nCosto]-CuidadoPersonal[Real\nCosto]","v":{"v":0,"d":"$0"}}]
[null,"Otros",null,null,{"$f":"Ninos[Previsto\nCosto]-Ninos[Real\nCosto]","v":{"v":0,"d":"$0"}},null,"Otros",null,null,{"$f":"CuidadoPersonal[Previsto\nCosto]-CuidadoPersonal[Real\nCosto]","v":{"v":0,"d":"$0"}}]
[null,"Total",{"$f":"SUBTOTAL(109,Ninos[Previsto\nCosto])","v":{"v":0,"d":"$0"}},{"$f":"SUBTOTAL(109,Ninos[Real\nCosto])","v":{"v":0,"d":"$0"}},{"$f":"SUBTOTAL(109,Ninos[Diferencia])","v":{"v":0,"d":"$0"}},null,"Total",{"$f":"SUBTOTAL(109,CuidadoPersonal[Previsto\nCosto])","v":{"v":0,"d":"$0"}},{"$f":"SUBTOTAL(109,CuidadoPersonal[Real\nCosto])","v":{"v":0,"d":"$0"}},{"$f":"SUBTOTAL(109,CuidadoPersonal[Diferencia])","v":{"v":0,"d":"$0"}}]
[]
[null,"Legal","Previsto\nCosto","Real\nCosto","Diferencia",null,"Mascotas","Previsto\nCosto","Real\nCosto","Diferencia"]
[null,"Abogados",null,null,{"$f":"Legal[Previsto\nCosto]-Legal[Real\nCosto]","v":{"v":0,"d":"$0"}},null,"Comida",null,null,{"$f":"Mascotas[Previsto\nCosto]-Mascotas[Real\nCosto]","v":{"v":0,"d":"$0"}}]
[null,"Pensión alimentaria",null,null,{"$f":"Legal[Previsto\nCosto]-Legal[Real\nCosto]","v":{"v":0,"d":"$0"}},null,"Médicos",null,null,{"$f":"Mascotas[Previsto\nCosto]-Mascotas[Real\nCosto]","v":{"v":0,"d":"$0"}}]
[null,"Pagos",null,null,{"$f":"Legal[Previsto\nCosto]-Legal[Real\nCosto]","v":{"v":0,"d":"$0"}},null,"Limpieza",null,null,{"$f":"Mascotas[Previsto\nCosto]-Mascotas[Real\nCosto]","v":{"v":0,"d":"$0"}}]
[null,"Otros",null,null,{"$f":"Legal[Previsto\nCosto]-Legal[Real\nCosto]","v":{"v":0,"d":"$0"}},null,"Juguetes",null,null,{"$f":"Mascotas[Previsto\nCosto]-Mascotas[Real\nCosto]","v":{"v":0,"d":"$0"}}]
[null,"Total",{"$f":"SUBTOTAL(109,Legal[Previsto\nCosto])","v":{"v":0,"d":"$0"}},{"$f":"SUBTOTAL(109,Legal[Real\nCosto])","v":{"v":0,"d":"$0"}},{"$f":"SUBTOTAL(109,Legal[Diferencia])","v":{"v":0,"d":"$0"}},null,"Otros",null,null,{"$f":"Mascotas[Previsto\nCosto]-Mascotas[Real\nCosto]","v":{"v":0,"d":"$0"}}]
[{"$nulls":6},"Total",{"$f":"SUBTOTAL(109,Mascotas[Previsto\nCosto])","v":{"v":0,"d":"$0"}},{"$f":"SUBTOTAL(109,Mascotas[Real\nCosto])","v":{"v":0,"d":"$0"}},{"$f":"SUBTOTAL(109,Mascotas[Diferencia])","v":{"v":0,"d":"$0"}}]
[null,"Ahorros e inversiones","Previsto\nCosto","Real\nCosto","Diferencia"]
[null,"Cuenta de jubilación",null,null,{"$f":"Ahorros[Previsto\nCosto]-Ahorros[Real\nCosto]","v":{"v":0,"d":"$0"}},null,"Regalos y donativos","Previsto\nCosto","Real\nCosto","Diferencia"]
[null,"Cuenta de inversión",null,null,{"$f":"Ahorros[Previsto\nCosto]-Ahorros[Real\nCosto]","v":{"v":0,"d":"$0"}},null,"Beneficencia 1",null,null,{"$f":"Regalos[Previsto\nCosto]-Regalos[Real\nCosto]","v":{"v":0,"d":"$0"}}]
[null,"Universidad",null,null,{"$f":"Ahorros[Previsto\nCosto]-Ahorros[Real\nCosto]","v":{"v":0,"d":"$0"}},null,"Beneficencia 2",null,null,{"$f":"Regalos[Previsto\nCosto]-Regalos[Real\nCosto]","v":{"v":0,"d":"$0"}}]
[null,"Otros",null,null,{"$f":"Ahorros[Previsto\nCosto]-Ahorros[Real\nCosto]","v":{"v":0,"d":"$0"}},null,"Beneficencia 3",null,null,{"$f":"Regalos[Previsto\nCosto]-Regalos[Real\nCosto]","v":{"v":0,"d":"$0"}}]
[null,"Total",{"$f":"SUBTOTAL(109,Ahorros[Previsto\nCosto])","v":{"v":0,"d":"$0"}},{"$f":"SUBTOTAL(109,Ahorros[Real\nCosto])","v":{"v":0,"d":"$0"}},{"$f":"SUBTOTAL(109,Ahorros[Diferencia])","v":{"v":0,"d":"$0"}},null,"Total",{"$f":"SUBTOTAL(109,Regalos[Previsto\nCosto])","v":{"v":0,"d":"$0"}},{"$f":"SUBTOTAL(109,Regalos[Real\nCosto])","v":{"v":0,"d":"$0"}},{"$f":"SUBTOTAL(109,Regalos[Diferencia])","v":{"v":0,"d":"$0"}}]